fUST/lending_fUST_20250206
["ID","MTS","AMOUNT","RATE_DAILY","PERIOD"]
[351826982,1738804246277,-740.41,0.00013835,2]
[351826983,1738804246286,-500.0,0.00013835,2]
[351826986,1738804246295,-500.0,0.00013835,2]
[351826987,1738804246304,-500.0,0.00013835,2]
[351826989,1738804246314,-500.0,0.00013835,2]
[351826991,1738804246323,-151.0,0.00013835,2]
[351826993,1738804246333,-151.0,0.00013835,2]
[351826996,1738804246343,-500.0,0.00013835,2]
[351826997,1738804246352,-151.0,0.00013835,2]
[351827000,1738804246362,-500.0,0.00013835,2]
[351827002,1738804246372,-500.0,0.00013835,2]
[351827004,1738804246381,-500.0,0.00013835,2]
[351827006,1738804246391,-500.0,0.00013835,2]
[351827007,1738804246400,-500.0,0.00013835,2]
[351827009,1738804246411,-500.0,0.00013835,2]
[351827011,1738804246421,-609.5,0.00013835,2]
[351827013,1738804246431,-569.67,0.00013835,2]
[351827016,1738804246442,-151.0,0.00013835,2]
[351827018,1738804246451,-500.0,0.00013835,2]
[351827020,1738804246461,-500.0,0.00013835,2]
[351827022,1738804246471,-500.0,0.00013835,2]
[351827024,1738804246480,-1156.26,0.00013835,2]
[351827026,1738804246490,-604.57,0.00013835,2]
[351827028,1738804246499,-1000.0,0.00013835,2]
[351827030,1738804246508,-500.0,0.00013835,2]
[351827032,1738804246517,-500.0,0.00013835,2]
[351827034,1738804246527,-742.22,0.00013835,2]
[351827036,1738804246536,-500.0,0.00013835,2]
[351827038,1738804246545,-500.0,0.00013835,2]
[351827039,1738804246555,-500.0,0.00013835,2]
[351827041,1738804246565,-496.18771056,0.00013835,2]
[351827043,1738804246574,-151.0,0.00013835,2]
[351827045,1738804246585,-500.0,0.00013835,2]
[351827048,1738804246594,-500.0,0.00013835,2]
[351827049,1738804246603,-500.0,0.00013835,2]
[351827051,1738804246613,-585.91,0.00013835,2]
[351827053,1738804246623,-500.0,0.00013835,2]
[351827055,1738804246632,-500.0,0.00013835,2]
[351827057,1738804246641,-500.0,0.00013835,2]
[351827059,1738804246652,-500.0,0.00013835,2]
[351827061,1738804246666,-151.0,0.00013835,2]
[351827063,1738804246682,-500.0,0.00013835,2]
[351827066,1738804246692,-500.0,0.00013835,2]
[351827067,1738804246702,-500.0,0.00013835,2]
[351827070,1738804246713,-1415.22,0.00013835,2]
[351827072,1738804246722,-500.0,0.00013835,2]
[351827074,1738804246732,-500.0,0.00013835,2]
[351827075,1738804246742,-500.0,0.00013835,2]
[351827077,1738804246752,-1443.99,0.00013835,2]
[351827079,1738804246762,-500.0,0.00013835,2]
[351827082,1738804246772,-500.0,0.00013835,2]
[351827084,1738804246782,-500.0,0.00013835,2]
[351827086,1738804246792,-500.0,0.00013835,2]
[351827088,1738804246801,-683.32,0.00013835,2]
[351827090,1738804246811,-500.0,0.00013835,2]
[351827091,1738804246820,-500.0,0.00013835,2]
[351827094,1738804246830,-560.72,0.00013835,2]
[351827096,1738804246840,-151.0,0.00013835,2]
[351827097,1738804246851,-151.0,0.00013835,2]
[351827099,1738804246860,-500.0,0.00013835,2]
[351827101,1738804246870,-500.0,0.00013835,2]
[351827103,1738804246880,-151.0,0.00013835,2]
[351827105,1738804246890,-500.0,0.00013835,2]
[351827107,1738804246900,-151.0,0.00013835,2]
[351827109,1738804246913,-765.79,0.00013835,2]
[351827110,1738804246922,-500.0,0.00013835,2]
[351827111,1738804246932,-978.54,0.00013835,2]
[351827112,1738804246942,-662.7,0.00013835,2]
[351827113,1738804246953,-500.0,0.00013835,2]
[351827114,1738804246963,-500.0,0.00013835,2]
[351827115,1738804246979,-500.0,0.00013835,2]
[351827116,1738804246989,-440.94378986,0.00013835,2]
[351827117,1738804246999,-542.56216063,0.00013835,2]
[351827118,1738804247011,-987.84,0.00013835,2]
[351827119,1738804247021,-500.0,0.00013835,2]
[351827120,1738804247031,-151.0,0.00013835,2]
[351827121,1738804247042,-500.0,0.00013835,2]
[351827122,1738804247054,-1257.98,0.00013835,2]
[351827124,1738804247065,-801.65,0.00013835,2]
[351827125,1738804247075,-151.0,0.00013835,2]
[351827127,1738804247085,-500.0,0.00013835,2]
[351827129,1738804247095,-151.0,0.00013835,2]
[351827131,1738804247105,-500.0,0.00013835,2]
[351827133,1738804247115,-500.0,0.00013835,2]
[351827135,1738804247124,-500.0,0.00013835,2]
[351827137,1738804247134,-582.67,0.00013835,2]
[351827139,1738804247143,-500.0,0.00013835,2]
[351827141,1738804247153,-500.0,0.00013835,2]
[351827143,1738804247164,-705.0,0.00013835,2]
[351827145,1738804247174,-500.0,0.00013835,2]
[351827147,1738804247183,-356.11613718,0.00013835,2]
[351827149,1738804247194,-500.0,0.00013835,2]
[351827151,1738804247203,-174.685209,0.00013835,2]
[351827153,1738804247213,-151.0,0.00013835,2]
[351827155,1738804247222,-1027.98,0.00013835,2]
[351827157,1738804247232,-2372.64,0.00013835,2]
[351827159,1738804247242,-500.0,0.00013835,2]
[351827161,1738804247251,-335.53491722,0.00013835,2]
[351827163,1738804247261,-501.73,0.00013835,2]
[351827165,1738804247270,-500.0,0.00013835,2]
[351827167,1738804247280,-555.55,0.00013835,2]
[351827169,1738804247290,-500.0,0.00013835,2]
[351827171,1738804247299,-500.0,0.00013835,2]
[351827173,1738804247309,-2472.94,0.00013835,2]
[351827175,1738804247319,-876.2,0.00013835,2]
[351827177,1738804247328,-500.0,0.00013835,2]
[351827179,1738804247338,-500.0,0.00013835,2]
[351827181,1738804247348,-500.0,0.00013835,2]
[351827183,1738804247357,-500.0,0.00013835,2]
[351827185,1738804247367,-500.0,0.00013835,2]
[351827186,1738804247376,-500.0,0.00013835,2]
[351827188,1738804247387,-500.0,0.00013835,2]
[351827190,1738804247398,-500.0,0.00013835,2]
[351827192,1738804247410,-500.0,0.00013835,2]
[351827194,1738804247420,-500.0,0.00013835,2]
[351827196,1738804247429,-152.554602,0.00013835,2]
[351827198,1738804247439,-500.0,0.00013835,2]
[351827200,1738804247448,-1557.09,0.00013835,2]
[351827202,1738804247459,-151.0,0.00013835,2]
[351827204,1738804247469,-1209.74,0.00013835,2]
[351827206,1738804247479,-500.0,0.00013835,2]
[351827208,1738804247489,-500.0,0.00013835,2]
[351827210,1738804247498,-741.61,0.00013835,2]
[351827212,1738804247509,-537.61,0.00013835,2]
[351827214,1738804247519,-500.0,0.00013835,2]
[351827216,1738804247528,-151.0,0.00013835,2]
[351827218,1738804247538,-1055.67,0.00013835,2]
[351827220,1738804247671,-151.0,0.00013835,2]
[351827222,1738804247703,-500.0,0.00013835,2]
[351827224,1738804247715,-500.0,0.00013835,2]
[351827226,1738804247725,-151.0,0.00013835,2]
[351827228,1738804247735,-500.0,0.00013835,2]
[351827230,1738804247745,-500.0,0.00013835,2]
[351827232,1738804247755,-500.0,0.00013835,2]
[351827234,1738804247765,-500.0,0.00013835,2]
[351827236,1738804247775,-500.0,0.00013835,2]
[351827238,1738804247785,-500.0,0.00013835,2]
[351827240,1738804247795,-654.27,0.00013835,2]
[351827242,1738804247805,-500.0,0.00013835,2]
[351827244,1738804247815,-500.0,0.00013835,2]
[351827246,1738804247826,-557.69,0.00013835,2]
[351827248,1738804247836,-500.0,0.00013835,2]
[351827250,1738804247845,-500.0,0.00013835,2]
[351827252,1738804247855,-500.0,0.00013835,2]
[351827254,1738804247865,-940.56,0.00013835,2]
[351827256,1738804247875,-500.0,0.00013835,2]
[351827258,1738804247886,-500.0,0.00013835,2]
[351827260,1738804247896,-690.72,0.00013835,2]
[351827262,1738804247905,-500.0,0.00013835,2]
[351827264,1738804247917,-500.0,0.00013835,2]
[351827266,1738804247927,-1105.67,0.00013835,2]
[351827268,1738804247939,-1344.02,0.00013835,2]
[351827270,1738804247950,-500.0,0.00013835,2]
[351827272,1738804247962,-500.0,0.00013835,2]
[351827274,1738804247980,-500.0,0.00013835,2]
[351827276,1738804247994,-366.09394727,0.00013835,2]
[351827278,1738804248004,-500.0,0.00013835,2]
[351827280,1738804248014,-500.0,0.00013835,2]
[351827282,1738804248026,-500.0,0.00013835,2]
[351827284,1738804248037,-688.26,0.00013835,2]
[351827286,1738804248047,-500.0,0.00013835,2]
[351827288,1738804248057,-3137.4,0.00013835,2]
[351827290,1738804248068,-500.0,0.00013835,2]
[351827292,1738804248079,-500.0,0.00013835,2]
[351827293,1738804248090,-610.08,0.00013835,2]
[351827295,1738804248102,-500.0,0.00013835,2]
[351827297,1738804248112,-500.0,0.00013835,2]
[351827299,1738804248122,-500.0,0.00013835,2]
[351827301,1738804248133,-500.0,0.00013835,2]
[351827303,1738804248144,-1295.34,0.00013835,2]
[351827306,1738804248155,-500.0,0.00013835,2]
[351827307,1738804248169,-500.0,0.00013835,2]
[351827309,1738804248179,-777.29,0.00013835,2]
[351827312,1738804248190,-151.0,0.00013835,2]
[351827314,1738804248201,-500.0,0.00013835,2]
[351827316,1738804248211,-1243.87,0.00013835,2]
[351827318,1738804248222,-1593.65,0.00013835,2]
[351827320,1738804248232,-582.0,0.00013835,2]
[351827322,1738804248242,-287.124491,0.00013835,2]
[351827324,1738804248253,-500.0,0.00013835,2]
[351827326,1738804248263,-1373.03,0.00013835,2]
[351827328,1738804248274,-681.61,0.00013835,2]
[351827330,1738804248285,-500.0,0.00013835,2]
[351827332,1738804248295,-151.0,0.00013835,2]
[351827334,1738804248305,-500.0,0.00013835,2]
[351827336,1738804248316,-162.84651182,0.00013835,2]
[351827338,1738804248326,-500.0,0.00013835,2]
[351827340,1738804248335,-500.0,0.00013835,2]
[351827342,1738804248345,-151.0,0.00013835,2]
[351827344,1738804248357,-500.0,0.00013835,2]
[351827346,1738804248367,-500.0,0.00013835,2]
[351827348,1738804248377,-151.0,0.00013835,2]
[351827350,1738804248387,-151.0,0.00013835,2]
[351827352,1738804248398,-500.0,0.00013835,2]
[351827354,1738804248410,-685.49,0.00013835,2]
[351827356,1738804248421,-500.0,0.00013835,2]
[351827358,1738804248431,-500.57,0.00013835,2]
[351827360,1738804248442,-500.0,0.00013835,2]
[351827362,1738804248452,-500.0,0.00013835,2]
[351827364,1738804248462,-500.0,0.00013835,2]
[351827366,1738804248473,-500.0,0.00013835,2]
[351827368,1738804248483,-506.39,0.00013835,2]
[351827370,1738804248493,-151.0,0.00013835,2]
[351827372,1738804248504,-500.0,0.00013835,2]
[351827374,1738804248515,-875.16,0.00013835,2]
[351827376,1738804248526,-151.0,0.00013835,2]
[351827378,1738804248536,-811.3,0.00013835,2]
[351827380,1738804248547,-151.0,0.00013835,2]
[351827382,1738804248558,-500.0,0.00013835,2]
[351827384,1738804248569,-771.09,0.00013835,2]
[351827386,1738804248578,-500.0,0.00013835,2]
[351827388,1738804248588,-500.0,0.00013835,2]
[351827390,1738804248598,-500.0,0.00013835,2]
[351827392,1738804248608,-2450.68,0.00013835,2]
[351827394,1738804248618,-500.0,0.00013835,2]
[351827396,1738804248628,-623.07,0.00013835,2]
[351827398,1738804248638,-387.679206,0.00013835,2]
[351827400,1738804248648,-644.13,0.00013835,2]
[351827402,1738804248661,-387.679206,0.00013835,2]
[351827404,1738804248672,-856.27,0.00013835,2]
[351827407,1738804248701,-500.0,0.00013835,2]
[351827409,1738804248713,-151.0,0.00013835,2]
[351827411,1738804248726,-546.36,0.00013835,2]
[351827413,1738804248738,-2266.97,0.00013835,2]
[351827415,1738804248749,-500.0,0.00013835,2]
[351827417,1738804248760,-500.0,0.00013835,2]
[351827419,1738804248770,-151.0,0.00013835,2]
[351827421,1738804248780,-500.0,0.00013835,2]
[351827423,1738804248791,-151.0,0.00013835,2]
[351827425,1738804248802,-153.324186,0.00013835,2]
[351827427,1738804248813,-500.0,0.00013835,2]
[351827429,1738804248824,-500.0,0.00013835,2]
[351827431,1738804248834,-530.37,0.00013835,2]
[351827433,1738804248844,-423.46014296,0.00013835,2]
[351827435,1738804248855,-500.0,0.00013835,2]
[351827437,1738804248865,-151.0,0.00013835,2]
[351827439,1738804248875,-500.0,0.00013835,2]
[351827441,1738804248886,-500.0,0.00013835,2]
[351827443,1738804248898,-500.0,0.00013835,2]
[351827446,1738804248910,-7362.1,0.00013835,2]
[351827448,1738804248921,-500.0,0.00013835,2]
[351827450,1738804248932,-500.0,0.00013835,2]
[351827452,1738804248944,-151.0,0.00013835,2]
[351827454,1738804248955,-1078.55,0.00013835,2]
[351827456,1738804248968,-500.0,0.00013835,2]
[351827458,1738804248979,-386.00369179,0.00013835,2]
[351827460,1738804248988,-966.68,0.00013835,2]
[351827461,1738804248998,-4610.79,0.00013835,2]
[351827463,1738804249009,-500.0,0.00013835,2]
[351827465,1738804249020,-3872.16,0.00013835,2]
[351827467,1738804249031,-500.0,0.00013835,2]
[351827469,1738804249043,-2267.79,0.00013835,2]
[351827471,1738804249055,-500.0,0.00013835,2]
[351827473,1738804249066,-500.0,0.00013835,2]
[351827475,1738804249077,-4977.11,0.00013835,2]
[351827478,1738804249090,-2312.19,0.00013835,2]
[351827480,1738804249100,-500.0,0.00013835,2]
[351827481,1738804249115,-500.0,0.00013835,2]
[351827483,1738804249126,-1315.93,0.00013835,2]
[351827485,1738804249137,-500.0,0.00013835,2]
[351827488,1738804249149,-1288.59,0.00013835,2]
[351827490,1738804249161,-500.0,0.00013835,2]
[351827492,1738804249173,-151.0,0.00013835,2]
[351827494,1738804249185,-2047.55,0.00013835,2]
[351827496,1738804249195,-500.0,0.00013835,2]
[351827498,1738804249205,-1869.47,0.00013835,2]
[351827500,1738804249217,-901.17,0.00013835,2]
[351827502,1738804249228,-500.0,0.00013835,2]
[351827504,1738804249239,-151.0,0.00013835,2]
[351827506,1738804249250,-500.0,0.00013835,2]
[351827508,1738804249262,-151.0,0.00013835,2]
[351827510,1738804249273,-500.0,0.00013835,2]
[351827512,1738804249284,-512.12,0.00013835,2]
[351827514,1738804249294,-500.0,0.00013835,2]
[351827516,1738804249304,-500.0,0.00013835,2]
[351827518,1738804249314,-500.0,0.00013835,2]
[351827520,1738804249325,-841.36,0.00013835,2]
[351827522,1738804249334,-500.0,0.00013835,2]
[351827524,1738804249344,-500.0,0.00013835,2]
[351827526,1738804249354,-636.12,0.00013835,2]
[351827528,1738804249364,-6581.4,0.00013835,2]
[351827530,1738804249373,-500.0,0.00013835,2]
[351827532,1738804249383,-205.131629,0.00013835,2]
[351827534,1738804249393,-800.4,0.00013835,2]
[351827536,1738804249403,-500.0,0.00013835,2]
[351827538,1738804249417,-465.97352666,0.00013835,2]
[351827540,1738804249429,-205.131629,0.00013835,2]
[351827542,1738804249443,-500.0,0.00013835,2]
[351827544,1738804249454,-500.0,0.00013835,2]
[351827546,1738804249465,-500.0,0.00013835,2]
[351827548,1738804249475,-500.0,0.00013835,2]
[351827550,1738804249486,-500.0,0.00013835,2]
[351827552,1738804249497,-500.0,0.00013835,2]
[351827554,1738804249507,-500.0,0.00013835,2]
[351827556,1738804249517,-500.0,0.00013835,2]
[351827558,1738804249527,-1312.57,0.00013835,2]
[351827560,1738804249537,-2256.44,0.00013835,2]
[351827562,1738804249548,-500.0,0.00013835,2]
[351827564,1738804249557,-2232.95,0.00013835,2]
[351827566,1738804249568,-500.0,0.00013835,2]
[351827568,1738804249577,-500.0,0.00013835,2]
[351827570,1738804249587,-1185.77,0.00013835,2]
[351827572,1738804249597,-568.17,0.00013835,2]
[351827574,1738804249606,-500.0,0.00013835,2]
[351827576,1738804249616,-151.0,0.00013835,2]
[351827578,1738804249626,-5295.47,0.00013835,2]
[351827580,1738804249635,-500.0,0.00013835,2]
[351827582,1738804249644,-863.13,0.00013835,2]
[351827584,1738804249654,-500.0,0.00013835,2]
[351827586,1738804249664,-500.0,0.00013835,2]
[351827588,1738804249674,-2139.93,0.00013835,2]
[351827590,1738804249700,-151.0,0.00013835,2]
[351827592,1738804249711,-10451.64,0.00013835,2]
[351827593,1738804249721,-29386.9,0.00013835,2]
[351827595,1738804249731,-500.0,0.00013835,2]
[351827598,1738804249743,-500.0,0.00013835,2]
[351827599,1738804249753,-500.0,0.00013835,2]
[351827602,1738804249763,-500.0,0.00013835,2]
[351827604,1738804249774,-500.0,0.00013835,2]
[351827606,1738804249785,-489.36134288,0.00013835,2]
[351827608,1738804249794,-500.0,0.00013835,2]
[351827610,1738804249804,-674.55,0.00013835,2]
[351827612,1738804249813,-518.61,0.00013835,2]
[351827614,1738804249823,-219.611113,0.00013835,2]
[351827616,1738804249832,-86895.18,0.00013835,2]
[351827617,1738804249841,-500.0,0.00013835,2]
[351827620,1738804249851,-500.0,0.00013835,2]
[351827622,1738804249861,-2464.11,0.00013835,2]
[351827624,1738804249871,-219.611113,0.00013835,2]
[351827626,1738804249881,-578.76,0.00013835,2]
[351827628,1738804249892,-500.0,0.00013835,2]
[351827630,1738804249901,-967.15,0.00013835,2]
[351827631,1738804249911,-500.0,0.00013835,2]
[351827634,1738804249921,-152.675225,0.00013835,2]
[351827636,1738804249930,-4302.82,0.00013835,2]
[351827638,1738804249940,-500.0,0.00013835,2]
[351827639,1738804249950,-526.78,0.00013835,2]
[351827642,1738804249959,-500.0,0.00013835,2]
[351827644,1738804249971,-151.0,0.00013835,2]
[351827645,1738804249981,-500.0,0.00013835,2]
[351827647,1738804249992,-151.0,0.00013835,2]
[351827649,1738804250001,-4338.16,0.00013835,2]
[351827651,1738804250011,-151.0,0.00013835,2]
[351827653,1738804250020,-685.72,0.00013835,2]
[351827655,1738804250030,-500.0,0.00013835,2]
[351827657,1738804250039,-2307.89,0.00013835,2]
[351827659,1738804250049,-2620.39,0.00013835,2]
[351827661,1738804250058,-332.23124973,0.00013835,2]
[351827663,1738804250068,-500.0,0.00013835,2]
[351827665,1738804250077,-500.0,0.00013835,2]
[351827667,1738804250087,-500.0,0.00013835,2]
[351827670,1738804250097,-6315.43,0.00013835,2]
[351827672,1738804250107,-2591.59,0.00013835,2]
[351827674,1738804250116,-515.51,0.00013835,2]
[351827676,1738804250126,-1673.8,0.00013835,2]
[351827678,1738804250135,-500.0,0.00013835,2]
[351827680,1738804250145,-1107.76,0.00013835,2]
[351827682,1738804250154,-326.81375176,0.00013835,2]
[351827684,1738804250164,-151.0,0.00013835,2]
[351827686,1738804250173,-3204.41,0.00013835,2]
[351827688,1738804250182,-500.0,0.00013835,2]
[351827689,1738804250192,-500.0,0.00013835,2]
[351827690,1738804250201,-646.86,0.00013835,2]
[351827691,1738804250210,-500.0,0.00013835,2]
[351827692,1738804250220,-2440.27,0.00013835,2]
[351827693,1738804250229,-850.12,0.00013835,2]
[351827694,1738804250238,-500.0,0.00013835,2]
[351827695,1738804250248,-500.0,0.00013835,2]
[351827696,1738804250258,-500.0,0.00013835,2]
[351827697,1738804250268,-500.0,0.00013835,2]
[351827699,1738804250278,-790.48,0.00013835,2]
[351827701,1738804250288,-500.0,0.00013835,2]
[351827703,1738804250297,-500.0,0.00013835,2]
[351827705,1738804250307,-500.0,0.00013835,2]
[351827707,1738804250316,-500.0,0.00013835,2]
[351827709,1738804250326,-500.0,0.00013835,2]
[351827711,1738804250335,-151.0,0.00013835,2]
[351827713,1738804250344,-500.0,0.00013835,2]
[351827715,1738804250354,-500.0,0.00013835,2]
[351827717,1738804250363,-1129.48,0.00013835,2]
[351827719,1738804250374,-500.0,0.00013835,2]
[351827721,1738804250384,-553.78,0.00013835,2]
[351827723,1738804250393,-500.0,0.00013835,2]
[351827725,1738804250403,-500.0,0.00013835,2]
[351827727,1738804250414,-151.0,0.00013835,2]
[351827729,1738804250423,-2322.8,0.00013835,2]
[351827731,1738804250433,-938.44,0.00013835,2]
[351827733,1738804250443,-151.0,0.00013835,2]
[351827735,1738804250453,-500.0,0.00013835,2]
[351827737,1738804250462,-687.8,0.00013835,2]
[351827739,1738804250471,-692.65,0.00013835,2]
[351827741,1738804250480,-680.23,0.00013835,2]
[351827743,1738804250490,-7132.4,0.00013835,2]
[351827745,1738804250499,-3379.23,0.00013835,2]
[351827747,1738804250508,-892.51,0.00013835,2]
[351827749,1738804250518,-500.0,0.00013835,2]
[351827751,1738804250527,-500.0,0.00013835,2]
[351827753,1738804250536,-514.86,0.00013835,2]
[351827755,1738804250546,-500.0,0.00013835,2]
[351827757,1738804250555,-529.19641124,0.00013835,2]
[351827759,1738804250564,-154.119608,0.00013835,2]
[351827761,1738804250573,-558.74,0.00013835,2]
[351827763,1738804250583,-500.0,0.00013835,2]
[351827765,1738804250592,-500.0,0.00013835,2]
[351827767,1738804250601,-563.09,0.00013835,2]
[351827769,1738804250610,-500.0,0.00013835,2]
[351827771,1738804250619,-500.0,0.00013835,2]
[351827773,1738804250629,-151.0,0.00013835,2]
[351827775,1738804250638,-247.035217,0.00013835,2]
[351827777,1738804250648,-837.8,0.00013835,2]
[351827779,1738804250658,-558.66,0.00013835,2]
[351827781,1738804250668,-500.0,0.00013835,2]
[351827783,1738804250677,-500.0,0.00013835,2]
[351827785,1738804250686,-151.0,0.00013835,2]
[351827787,1738804250696,-500.0,0.00013835,2]
[351827789,1738804250706,-500.0,0.00013835,2]
[351827791,1738804250715,-500.0,0.00013835,2]
[351827793,1738804250724,-1319.13,0.00013835,2]
[351827795,1738804250733,-510.19,0.00013835,2]
[351827797,1738804250742,-151.0,0.00013835,2]
[351827799,1738804250752,-11870.84,0.00013835,2]
[351827801,1738804250762,-500.0,0.00013835,2]
[351827803,1738804250773,-500.0,0.00013835,2]
[351827805,1738804250782,-506.39,0.00013835,2]
[351827820,1738804250901,-12502.07957306,0.00013848,2]
[351827822,1738804250927,-500.0,0.00013873,2]
[351827824,1738804250937,-500.0,0.00013873,2]
[351827826,1738804250946,-500.0,0.00013873,2]
[351827828,1738804250955,-216.9740953,0.0001389,2]
[351827830,1738804250966,-2968.20641107,0.000139,2]
[351827832,1738804250978,-796.9060457,0.00013967,2]
[351827834,1738804250988,-500.0,0.00013972,2]
[351827836,1738804250997,-500.0,0.00013972,2]
[351827838,1738804251007,-1000.0,0.00013972,2]
[351827840,1738804251016,-500.0,0.00013972,2]
[351827842,1738804251026,-500.0,0.00013972,2]
[351827844,1738804251035,-324.04764421,0.00013972,2]
[351827846,1738804251045,-882.94,0.00013972,2]
[351827848,1738804251055,-500.0,0.00013972,2]
[351827850,1738804251065,-1211.89,0.00013972,2]
[351827852,1738804251075,-636.09,0.00013972,2]
[351827854,1738804251086,-585.62,0.00013972,2]
[351827857,1738804251096,-500.0,0.00013972,2]
[351827859,1738804251106,-500.0,0.00013972,2]
[351827860,1738804251117,-500.0,0.00013972,2]
[351827862,1738804251126,-151.0,0.00013972,2]
[351827864,1738804251136,-500.0,0.00013972,2]
[351827866,1738804251146,-740.41,0.00013972,2]
[351827868,1738804251156,-500.0,0.00013972,2]
[351827871,1738804251166,-500.0,0.00013972,2]
[351827872,1738804251176,-232.343639,0.00013972,2]
[351827875,1738804251186,-152.052962,0.00013972,2]
[351827877,1738804251195,-151.0,0.00013972,2]
[351827879,1738804251205,-151.0,0.00013972,2]
[351827881,1738804251215,-500.0,0.00013972,2]
[351827883,1738804251224,-151.0,0.00013972,2]
[351827885,1738804251234,-500.0,0.00013972,2]
[351827887,1738804251243,-500.0,0.00013972,2]
[351827888,1738804251253,-500.0,0.00013972,2]
[351827890,1738804251263,-500.0,0.00013972,2]
[351827892,1738804251272,-500.0,0.00013972,2]
[351827895,1738804251282,-609.5,0.00013972,2]
[351827897,1738804251291,-569.67,0.00013972,2]
[351827899,1738804251301,-260.11761032,0.00013972,2]
[351827901,1738804251312,-500.0,0.00013972,2]
[351827903,1738804251322,-1156.26,0.00013972,2]
[351827905,1738804251331,-604.57,0.00013972,2]
[351827906,1738804251340,-1000.0,0.00013972,2]
[351827909,1738804251349,-500.0,0.00013972,2]
[351827911,1738804251366,-500.0,0.00013972,2]
[351827914,1738804251380,-742.22,0.00013972,2]
[351827916,1738804251390,-500.0,0.00013972,2]
[351827918,1738804251400,-500.0,0.00013972,2]
[351827920,1738804251410,-500.0,0.00013972,2]
[351827922,1738804251420,-500.0,0.00013972,2]
[351827924,1738804251430,-585.91,0.00013972,2]
[351827926,1738804251441,-500.0,0.00013972,2]
[351827928,1738804251451,-500.0,0.00013972,2]
[351827930,1738804251461,-500.0,0.00013972,2]
[351827932,1738804251471,-1415.22,0.00013972,2]
[351827934,1738804251482,-500.0,0.00013972,2]
[351827936,1738804251492,-1443.99,0.00013972,2]
[351827938,1738804251502,-185.72420012,0.00013972,2]
[351827941,1738804251512,-683.32,0.00013972,2]
[351827943,1738804251522,-500.0,0.00013972,2]
[351827945,1738804251531,-500.0,0.00013972,2]
[351827947,1738804251542,-560.72,0.00013972,2]
[351827949,1738804251552,-152.46889,0.00013972,2]
[351827951,1738804251562,-500.0,0.00013972,2]
[351827953,1738804251572,-500.0,0.00013972,2]
[351827955,1738804251582,-151.0,0.00013972,2]
[351827957,1738804251593,-500.0,0.00013972,2]
[351827959,1738804251603,-151.0,0.00013972,2]
[351827961,1738804251613,-765.79,0.00013972,2]
[351827963,1738804251623,-500.0,0.00013972,2]
[351827966,1738804251633,-978.54,0.00013972,2]
[351827968,1738804251643,-662.7,0.00013972,2]
[351827970,1738804251653,-500.0,0.00013972,2]
[351827972,1738804251663,-500.0,0.00013972,2]
[351827974,1738804251673,-987.84,0.00013972,2]